bitfinex-derivatives/quotes_SOLF0:USTF0_20241105
["timestamp","ask_amount","ask_price","bid_price","bid_amount"]
[1730808160726,7.57358319,162.36,162.3,7.57358319]
[1730808161235,7.57358319,162.36,162.35,3.0811]
[1730808162225,3.0801,162.41,162.37,3.0806]
[1730808162428,7.57358319,162.39,162.33,10.39358319]
[1730808162731,7.57358319,162.39,162.33,11.77138319]
[1730808164536,7.57358319,162.39,162.37,3.0807]
[1730808165325,7.57358319,162.38,162.34,3.0811]
[1730808165526,7.57358319,162.36,162.33,4.1978]
[1730808166431,7.57358319,162.35,162.32,2.8001]
[1730808166655,7.57358319,162.35,162.32,5.6201]
[1730808166933,7.57358319,162.37,162.32,5.6201]
[1730808167930,7.57358319,162.37,162.34,3.0812]
[1730808168135,7.57358319,162.37,162.32,5.6201]
[1730808168441,7.57358319,162.35,162.33,3.0815]
[1730808168841,7.57358319,162.35,162.32,5.6201]
[1730808169037,7.57358319,162.39,162.37,3.0806]
[1730808169234,3.08,162.41,162.35,7.57358319]
[1730808169235,7.57358319,162.41,162.35,7.57358319]
[1730808169534,7.57358319,162.41,162.39,3.0803]
[1730808169838,7.57358319,162.41,162.36,2.82]
[1730808170042,7.57358319,162.41,162.38,3.0804]
[1730808171032,7.57358319,162.39,162.38,3.0804]
[1730808174631,3.0809,162.37,162.32,3.0816]
[1730808174941,7.57358319,162.33,162.32,3.0816]
[1730808175139,3.0809,162.37,162.32,3.0816]
[1730808175445,7.57358319,162.35,162.32,3.0816]
[1730808176946,7.57358319,162.35,162.34,3.0813]
[1730808177245,7.57358319,162.35,162.31,2.82]
[1730808178343,7.57358319,162.35,162.33,3.0814]
[1730808182245,7.57358319,162.35,162.32,3.0816]
[1730808182544,7.57358319,162.35,162.31,2.82]
[1730808182545,7.57358319,162.34,162.31,2.82]
[1730808183044,7.57358319,162.34,162.31,5.9018]
[1730808186738,3.082,162.31,162.27,3.0825]
[1730808186951,1.3552,162.38,162.27,2.86]
[1730808186952,7.57358319,162.3,162.27,2.86]
[1730808187443,7.57358319,162.3,162.28,3.0823]
[1730808188238,7.57358319,162.3,162.27,3.0825]
[1730808188441,7.57358319,162.29,162.24,10.43358319]
[1730808188655,7.57358319,162.3,162.24,10.43358319]
[1730808188949,7.57358319,162.3,162.24,7.57358319]
[1730808189146,7.57358319,162.3,162.24,10.43358319]
[1730808190154,7.57358319,162.3,162.27,3.0825]
[1730808191047,5.9414,162.34,162.27,7.57358319]
[1730808191252,7.57358319,162.33,162.27,7.57358319]
[1730808191644,7.57358319,162.33,162.29,3.0821]
[1730808192153,10.65508319,162.33,162.29,3.0821]
[1730808192547,2.86,162.35,162.27,7.57358319]
[1730808192748,7.57358319,162.32,162.27,7.57358319]
[1730808192948,7.57358319,162.32,162.29,3.0821]
[1730808193353,7.57358319,162.32,162.27,7.57358319]
[1730808193647,3.0815,162.33,162.29,3.0821]
[1730808193953,7.57358319,162.32,162.29,3.0821]
[1730808194150,7.57358319,162.32,162.28,3.0823]
[1730808194354,7.57358319,162.31,162.28,3.0823]
[1730808196352,7.57358319,162.31,162.26,7.57358319]
[1730808196558,2.86,162.35,162.26,7.57358319]
[1730808196754,7.57358319,162.32,162.27,7.57358319]
[1730808197357,7.57358319,162.32,162.3,3.0819]
[1730808197751,3.0813,162.35,162.3,3.0819]
[1730808197955,7.57358319,162.33,162.3,3.0819]
[1730808199061,7.57358319,162.33,162.28,7.57358319]
[1730808199062,3.0809,162.37,162.31,3.0819]
[1730808199362,7.57358319,162.35,162.3,7.57358319]
[1730808200455,7.57358319,162.35,162.32,3.0816]
[1730808200856,7.57358319,162.35,162.3,7.57358319]
[1730808201160,7.57358319,162.35,162.33,3.0815]
[1730808201970,3.0816,162.33,162.29,3.0821]
[1730808202159,7.57358319,162.31,162.26,2.86]
[1730808202563,7.57358319,162.29,162.26,2.86]
[1730808202767,7.57358319,162.29,162.23,59.30229559]
[1730808202960,7.57358319,162.29,162.24,2.86]
[1730808203359,7.57358319,162.29,162.27,3.0825]
[1730808203760,7.57358319,162.29,162.24,2.86]
[1730808203961,7.57358319,162.28,162.26,3.0827]
[1730808204360,7.57358319,162.28,162.25,3.083]
[1730808204767,7.57358319,162.28,162.24,2.86]
[1730808206270,7.57358319,162.28,162.26,3.0828]
[1730808206971,7.57358319,162.28,162.23,2.86]
[1730808207164,7.57358319,162.26,162.23,2.86]
[1730808207668,7.57358319,162.26,162.24,3.083]
[1730808207962,7.57358319,162.26,162.23,2.86]
[1730808208169,7.57358319,162.26,162.24,3.0832]
[1730808208672,7.57358319,162.26,162.23,2.86]
[1730808208863,7.57358319,162.27,162.22,4.144]
[1730808209170,7.57358319,162.27,162.22,11.71758319]
[1730808210358,7.57358319,162.27,162.25,3.083]
[1730808214374,7.57358319,162.27,162.22,11.71758319]
[1730808215172,7.57358319,162.27,162.25,3.0829]
[1730808220080,7.57358319,162.26,162.17,57.91826456]
[1730808220368,2.82,162.29,162.23,3.0833]
[1730808220571,7.57358319,162.28,162.22,10.39358319]
[1730808221075,7.57358319,162.28,162.26,3.0827]
[1730808221574,7.57358319,162.28,162.25,3.0828]
[1730808221764,7.57358319,162.26,162.22,2.82]
[1730808223376,7.57358319,162.26,162.25,3.083]
[1730808224788,7.57358319,162.28,162.22,10.39358319]
[1730808224984,7.57358319,162.28,162.26,3.0827]
[1730808225779,57.2133119,162.32,162.24,7.57358319]
[1730808225780,7.57358319,162.29,162.24,7.57358319]
[1730808225980,54.3933119,162.32,162.26,7.57358319]
[1730808226181,7.57358319,162.31,162.29,3.0821]
[1730808226585,7.57358319,162.3,162.29,3.0821]
[1730808231087,7.57358319,162.3,162.28,3.0824]
[1730808231287,7.57358319,162.3,162.26,2.82]
[1730808231587,7.57358319,162.27,162.22,1.374]
[1730808231793,3.0831,162.25,162.2,2.82]
[1730808231990,5.4867,162.31,162.2,2.82]
[1730808232183,7.57358319,162.24,162.2,2.82]
[1730808232582,7.57358319,162.24,162.21,3.0837]
[1730808237296,7.57358319,162.22,162.21,3.0837]
[1730808238996,7.57358319,162.24,162.18,8.85218319]
[1730808239306,7.57358319,162.24,162.22,3.0834]
[1730808244604,7.57358319,162.24,162.19,3.084]
[1730808244899,7.57358319,162.24,162.18,11.67218319]
[1730808245298,7.57358319,162.24,162.22,3.0835]
[1730808245494,7.57358319,162.25,162.2,7.57358319]
[1730808246303,7.57358319,162.25,162.24,3.0832]
[1730808253202,7.57358319,162.27,162.2,7.57358319]
[1730808253406,7.57358319,162.27,162.22,10.37358319]
[1730808253905,7.57358319,162.27,162.26,3.0828]
[1730808254299,7.57358319,162.27,162.22,10.37358319]
[1730808254300,7.57358319,162.28,162.23,7.57358319]
[1730808254904,7.57358319,162.28,162.27,3.0826]
[1730808256406,3.082,162.31,162.27,3.0826]
[1730808256707,7.57358319,162.29,162.27,3.0826]
[1730808259512,7.57358319,162.29,162.23,7.57358319]
[1730808259710,7.57358319,162.29,162.27,3.0824]
[1730808261212,7.57358319,162.29,162.22,2.8]
[1730808261418,7.57358319,162.27,162.22,2.8]
[1730808262417,7.57358319,162.27,162.24,3.083]
[1730808262619,7.57358319,162.27,162.22,10.37358319]
[1730808263213,7.57358319,162.27,162.25,3.0829]
[1730808267115,7.57358319,162.28,162.25,3.0829]
[1730808267814,7.57358319,162.28,162.26,3.0827]
[1730808268014,2.8,162.33,162.24,7.57358319]
[1730808268215,7.57358319,162.29,162.24,7.57358319]
[1730808268715,7.57358319,162.29,162.27,3.0826]
[1730808271517,7.57358319,162.29,162.24,7.57358319]
[1730808272022,7.57358319,162.28,162.27,3.0825]
[1730808277324,7.57358319,162.28,162.22,2.8]
[1730808277325,7.57358319,162.28,162.26,3.0828]
[1730808281521,7.57358319,162.28,162.27,3.0826]
[1730808295549,7.57358319,162.3,162.24,7.57358319]
[1730808295745,1.3304,162.34,162.25,7.57358319]
[1730808295944,7.57358319,162.32,162.25,7.57358319]
[1730808296845,10.65538319,162.32,162.29,3.0821]
[1730808297449,2.8,162.34,162.27,7.57358319]
[1730808297450,5.8814,162.34,162.27,7.57358319]
[1730808297656,7.57358319,162.32,162.27,7.57358319]
[1730808298549,5.8814,162.34,162.31,3.0819]
[1730808301456,7.57358319,162.32,162.31,3.0819]
[1730808305558,7.57358319,162.32,162.27,7.57358319]
[1730808305854,10.65558319,162.31,162.29,3.0821]
[1730808309450,3.082,162.31,162.29,3.0821]
[1730808315165,10.65578319,162.3,162.27,3.0825]
[1730808315366,7.57358319,162.29,162.25,1.2718]
[1730808316374,10.65588319,162.29,162.26,3.0827]
[1730808319363,7.57358319,162.29,162.26,3.0827]
[1730808320365,7.57358319,162.28,162.26,3.0827]
[1730808322666,7.57358319,162.28,162.23,3.0833]
[1730808322965,7.57358319,162.24,162.19,1.3209]
[1730808323268,7.57358319,162.21,162.16,13.07238319]
[1730808323457,7.57358319,162.21,162.18,54.83070748]
[1730808323859,7.57358319,162.2,162.18,51.74650748]
[1730808324065,7.57358319,162.2,162.16,2.6988]
[1730808324665,7.57358319,162.2,162.17,3.0844]
[1730808325364,7.57358319,162.2,162.16,2.6988]
[1730808325365,7.57358319,162.19,162.16,5.7835]
[1730808325566,7.57358319,162.19,162.16,2.6988]
[1730808325766,7.57358319,162.19,162.16,5.7834]
[1730808326669,0.4409,162.28,162.13,11.74248319]
[1730808326670,7.57358319,162.17,162.13,11.74248319]
[1730808326966,12.35982897,162.28,162.1,4.0965]
[1730808326967,7.57358319,162.15,162.1,4.0965]
[1730808327174,7.57358319,162.15,162.12,3.0853]
[1730808328368,7.57358319,162.13,162.08,3.0862]
[1730808328571,7.57358319,162.11,162.08,3.0862]
[1730808330573,7.57358319,162.11,162.06,4.1836]
[1730808330975,7.57358319,162.09,162.06,4.1836]
[1730808331174,7.57358319,162.09,162.06,4.4701]
[1730808331381,7.57358319,162.08,162.05,1.3149]
[1730808331878,7.57358319,162.08,162.06,3.0866]
[1730808332183,2.8,162.15,162.06,3.0866]
[1730808332184,7.57358319,162.1,162.06,3.0866]
[1730808333183,3.0856,162.12,162.08,3.0862]
[1730808333477,7.57358319,162.1,162.05,1.3149]
[1730808333681,7.57358319,162.1,162.07,3.0863]
[1730808334883,7.57358319,162.09,162.07,3.0863]
[1730808335379,7.57358319,162.1,162.07,3.0863]
[1730808339388,7.57358319,162.1,162.08,3.0862]
[1730808341388,3.0855,162.12,162.04,10.37358319]
[1730808341389,7.57358319,162.12,162.06,7.57358319]
[1730808341686,2.8,162.15,162.06,7.57358319]
[1730808341985,2.8,162.15,162.07,1.3591]
[1730808341986,7.57358319,162.12,162.07,1.3591]
[1730808342188,7.57358319,162.12,162.08,2.8]
[1730808342692,7.57358319,162.13,162.08,2.8]
[1730808343188,7.57358319,162.13,162.09,3.0859]
[1730808343388,7.57358319,162.13,162.08,2.8]
[1730808344291,7.57358319,162.13,162.11,3.0855]
[1730808345292,3.0848,162.16,162.08,2.8]
[1730808345490,7.57358319,162.13,162.12,3.0855]
[1730808352685,3.0847,162.16,162.12,3.0855]
[1730808352887,7.57358319,162.13,162.08,2.8]
[1730808353093,7.57358319,162.11,162.09,3.0859]
[1730808353595,2.8,162.17,162.07,4.1591]
[1730808353596,7.57358319,162.1,162.07,3.0863]
[1730808353787,7.57358319,162.08,162.05,2.8]
[1730808354896,7.57358319,162.08,162.05,5.8867]
[1730808355302,7.57358319,162.08,162.05,2.8]
[1730808355597,7.57358319,162.08,162.06,3.0864]
[1730808355787,7.57358319,162.09,162.05,2.8]
[1730808356598,7.57358319,162.09,162.08,3.0862]
[1730808361600,1.3894,162.16,162.07,7.57358319]
[1730808361601,7.57358319,162.12,162.07,7.57358319]
[1730808362006,7.57358319,162.12,162.11,3.0857]
[1730808363090,3.0849,162.16,162.09,2.8]
[1730808363292,4.2121,162.18,162.13,3.0853]
[1730808363595,3.0848,162.16,162.13,3.0853]
[1730808364300,7.57358319,162.14,162.09,10.37358319]
[1730808365103,7.57358319,162.14,162.13,3.0853]
[1730808365303,7.57358319,162.14,162.09,10.37358319]
[1730808366099,7.57358319,162.14,162.12,3.0854]
[1730808367504,7.57358319,162.14,162.09,10.37358319]
[1730808367808,7.57358319,162.12,162.09,2.8]
[1730808368204,7.57358319,162.12,162.11,3.0857]
[1730808368605,4.2121,162.18,162.11,3.0857]
[1730808368902,7.57358319,162.13,162.11,3.0857]
[1730808369502,3.0846,162.17,162.13,3.0852]
[1730808369705,1.4109,162.2,162.11,7.57358319]
[1730808369905,7.57358319,162.16,162.11,7.57358319]
[1730808370706,7.57358319,162.16,162.13,3.0851]
[1730808371509,7.57358319,162.16,162.11,7.57358319]
[1730808372709,7.57358319,162.16,162.14,3.085]
[1730808373411,3.0852,162.14,162.1,3.0857]
[1730808373606,7.57358319,162.13,162.09,2.8]
[1730808375113,7.57358319,162.13,162.1,3.0857]
[1730808375703,10.65898319,162.13,162.09,5.886]
[1730808375909,10.65898319,162.13,162.09,3.086]
[1730808379216,2.8,162.17,162.12,3.0853]
[1730808379417,7.57358319,162.15,162.1,7.57358319]
[1730808380305,10.65848319,162.15,162.12,3.0854]
[1730808382115,7.57358319,162.15,162.12,3.0854]
[1730808382622,7.57358319,162.14,162.1,7.57358319]
[1730808383118,7.57358319,162.14,162.12,3.0854]
[1730808386512,7.57358319,162.16,162.1,7.57358319]
[1730808387017,7.57358319,162.16,162.13,3.0852]
[1730808387923,10.65828319,162.16,162.12,5.8854]
[1730808388917,7.57358319,162.14,162.12,5.8854]
[1730808392123,7.57358319,162.13,162.07,1.339]
[1730808392423,7.57358319,162.1,162.06,53.19697292]
[1730808392615,7.57358319,162.1,162.07,2.8]
[1730808392816,7.57358319,162.1,162.06,53.19697292]
[1730808393019,7.57358319,162.1,162.08,3.0861]
[1730808395824,7.57358319,162.1,162.07,2.8]
[1730808396129,7.57358319,162.09,162.06,51.78867292]
[1730808396924,10.65968319,162.09,162.06,51.78867292]
[1730808397422,7.57358319,162.09,162.06,51.78867292]
[1730808398325,7.57358319,162.09,162.06,54.87517292]
[1730808399538,7.57358319,162.08,162.06,51.78867292]
[1730808401226,7.57358319,162.08,162.06,54.87527292]
[1730808402122,10.65978319,162.09,162.06,54.87527292]
[1730808402728,7.57358319,162.08,162.04,2.8]
[1730808402932,7.57358319,162.07,162.04,3.0869]
[1730808404333,10.66008319,162.07,162.04,3.0869]
[1730808404932,7.57358319,162.07,162.04,3.0869]
[1730808405131,7.57358319,162.08,162.05,3.0866]
[1730808407036,3.0857,162.11,162.07,3.0863]
[1730808407237,3.0857,162.11,162.04,7.57358319]
[1730808407538,7.57358319,162.1,162.04,7.57358319]
[1730808408932,2.8,162.13,162.07,3.0863]
[1730808409133,7.57358319,162.1,162.06,2.8]
[1730808409335,3.0856,162.12,162.06,2.8]
[1730808409543,7.57358319,162.1,162.08,3.0861]
[1730808409929,3.0856,162.12,162.06,2.8]
[1730808410136,7.57358319,162.11,162.09,3.086]
[1730808412432,7.57358319,162.11,162.07,7.57358319]
[1730808413932,7.57358319,162.11,162.09,3.0859]
[1730808419044,7.57358319,162.11,162.06,2.8]
[1730808419045,7.57358319,162.1,162.06,2.8]
[1730808420242,10.65958319,162.1,162.07,3.0863]
[1730808420947,10.65958319,162.1,162.06,5.8865]
[1730808422344,10.65928319,162.11,162.06,10.37358319]
[1730808422544,10.65928319,162.11,162.06,2.8]
[1730808422939,10.65928319,162.11,162.07,3.0863]
[1730808423138,7.57358319,162.1,162.07,3.0863]
[1730808440564,7.57358319,162.15,162.09,7.57358319]
[1730808440865,7.57358319,162.17,162.12,7.57358319]
[1730808441062,3.0842,162.19,162.15,3.0848]
[1730808441256,7.57358319,162.17,162.12,10.37358319]
[1730808441451,54.42585969,162.21,162.13,7.57358319]
[1730808441763,61.99944288,162.21,162.15,7.57358319]
[1730808441965,61.99944288,162.21,162.16,2.8]
[1730808442261,54.42585969,162.21,162.2,3.084]
[1730808442458,54.42585969,162.21,162.16,10.37358319]
[1730808442858,2.8,162.26,162.18,7.57358319]
[1730808443058,7.57358319,162.23,162.18,7.57358319]
[1730808443566,7.57358319,162.23,162.2,3.0838]
[1730808445366,7.57358319,162.23,162.2,5.8838]
[1730808447470,2.8,162.28,162.22,3.0835]
[1730808447661,7.57358319,162.25,162.22,3.0835]
[1730808447858,7.57358319,162.26,162.21,7.57358319]
[1730808448057,7.57358319,162.26,162.24,3.0831]
[1730808449062,7.57358319,162.26,162.23,3.0833]
[1730808449966,7.57358319,162.24,162.12,6.1708]
[1730808450156,7.57358319,162.23,162.17,7.57358319]
[1730808450361,7.57358319,162.23,162.18,2.8]
[1730808450759,10.65698319,162.23,162.18,5.8841]
[1730808451169,10.65698319,162.23,162.18,2.8]
[1730808451467,10.65698319,162.23,162.19,5.884]
[1730808452173,7.57358319,162.23,162.2,3.0839]
[1730808453071,7.57358319,162.23,162.19,2.8]
[1730808453277,10.65698319,162.23,162.19,5.8841]
[1730808455873,7.57358319,162.23,162.2,3.0838]
[1730808457183,10.65698319,162.23,162.2,3.0838]
[1730808458187,3.0837,162.22,162.19,2.8]
[1730808458481,7.57358319,162.23,162.19,2.8]
[1730808459179,10.65698319,162.23,162.19,5.884]
[1730808460678,10.65698319,162.23,162.2,3.0839]
[1730808461981,7.57358319,162.21,162.16,7.57358319]
[1730808462182,7.57358319,162.21,162.17,2.8]
[1730808463280,3.084,162.2,162.17,5.8844]
[1730808464981,3.084,162.2,162.17,3.0844]
[1730808465181,3.0842,162.19,162.16,5.8847]
[1730808465385,7.57358319,162.18,162.16,3.0847]
[1730808467081,10.65778319,162.19,162.16,3.0847]
[1730808472882,2.71,162.23,162.14,10.37358319]
[1730808472883,10.65798319,162.18,162.15,3.0849]
[1730808473088,7.57358319,162.19,162.15,3.0849]
[1730808473394,10.65778319,162.19,162.16,3.0847]
[1730808473892,7.57358319,162.19,162.17,3.0844]
[1730808476790,7.57358319,162.22,162.2,3.0838]
[1730808477389,7.57358319,162.22,162.18,2.8]
[1730808477589,54.41692509,162.24,162.18,10.37358319]
[1730808477792,61.99050828,162.24,162.18,10.37358319]
[1730808478491,61.99050828,162.24,162.22,3.0834]
[1730808478797,7.57358319,162.24,162.22,3.0834]
[1730808479396,10.65638319,162.26,162.22,3.0834]
[1730808479696,3.2455,162.31,162.22,10.37358319]
[1730808479891,54.39540923,162.32,162.24,7.57358319]
[1730808480095,7.57358319,162.29,162.24,7.57358319]
[1730808480293,7.57358319,162.29,162.25,7.57358319]
[1730808480995,7.57358319,162.28,162.22,2.8]
[1730808481195,7.57358319,162.28,162.22,10.37358319]
[1730808481596,3.0826,162.27,162.23,3.0833]
[1730808481798,7.57358319,162.26,162.23,3.0833]
[1730808485198,10.65638319,162.26,162.22,2.8]
[1730808485605,10.65638319,162.26,162.22,5.8835]
[1730808485896,10.65638319,162.26,162.22,2.8]
[1730808485897,3.083,162.25,162.22,2.8]
[1730808486305,7.57358319,162.26,162.22,5.8836]
[1730808486490,10.65648319,162.26,162.22,2.8]
[1730808486890,7.57358319,162.26,162.22,2.8]
[1730808487097,7.57358319,162.26,162.23,3.0833]
[1730808487907,7.57358319,162.25,162.22,5.8835]
[1730808489102,7.57358319,162.25,162.22,2.8]
[1730808489600,7.57358319,162.25,162.2,3.0839]
[1730808489898,2.8,162.3,162.19,2.8]
[1730808489899,7.57358319,162.22,162.19,2.8]
[1730808490297,7.57358319,162.22,162.17,7.57358319]
[1730808490298,7.57358319,162.2,162.18,3.0842]
[1730808490505,7.57358319,162.2,162.17,2.8]
[1730808490703,7.57358319,162.2,162.18,3.0843]
[1730808491098,10.65728319,162.22,162.18,3.0843]
[1730808491600,3.0838,162.21,162.18,3.0843]
[1730808491806,3.0838,162.21,162.17,5.8845]
[1730808492005,3.0838,162.21,162.17,2.8]
[1730808493299,3.0838,162.21,162.18,3.0843]
[1730808493607,7.57358319,162.22,162.18,3.0843]
[1730808493801,10.65728319,162.22,162.18,3.0843]
[1730808494702,3.0838,162.21,162.18,3.0843]
[1730808496306,7.57358319,162.2,162.18,3.0843]
[1730808497507,10.65728319,162.22,162.18,3.0843]
[1730808497906,10.65728319,162.22,162.17,10.37358319]
[1730808498107,10.65728319,162.22,162.19,3.0841]
[1730808498317,1.3118,162.25,162.18,7.57358319]
[1730808498508,7.57358319,162.24,162.18,7.57358319]
[1730808498715,7.57358319,162.24,162.21,3.0837]
[1730808499116,7.57358319,162.24,162.19,7.57358319]
[1730808499309,7.57358319,162.26,162.19,8.94588319]
[1730808500008,10.65638319,162.26,162.19,8.94588319]
[1730808500412,10.65638319,162.26,162.22,3.0834]
[1730808501814,10.65638319,162.26,162.23,3.0833]
[1730808502911,7.57358319,162.24,162.23,3.0833]
[1730808503317,7.57358319,162.24,162.21,2.8]
[1730808503521,10.65688319,162.24,162.21,5.8837]
[1730808504519,7.57358319,162.23,162.21,2.8]
[1730808504720,7.57358319,162.23,162.21,5.8838]
[1730808505019,7.57358319,162.23,162.21,2.8]
[1730808505521,10.65708319,162.23,162.21,2.8]
[1730808505924,10.65708319,162.23,162.2,3.0838]
[1730808514318,3.0835,162.23,162.2,3.0838]
[1730808514922,1.3766,162.28,162.19,7.57358319]
[1730808515125,7.57358319,162.26,162.21,7.57358319]
[1730808515317,7.57358319,162.25,162.21,7.57358319]
[1730808515517,7.57358319,162.25,162.23,3.0833]
[1730808522524,3.0825,162.28,162.21,7.57358319]
[1730808522722,3.0825,162.28,162.14,7.5676]
[1730808522723,10.65608319,162.28,162.23,7.57358319]
[1730808524430,10.65608319,162.28,162.25,3.0829]
[1730808524821,10.65608319,162.28,162.26,3.0828]
[1730808525825,10.65548319,162.31,162.27,3.0826]
[1730808526028,61.96899242,162.32,162.27,10.35358319]
[1730808526237,61.96899242,162.32,162.27,10.30768246]
[1730808526429,3.84989042,162.31,162.3,3.082]
[1730808527534,4.13505087,162.31,162.3,3.082]
[1730808527733,7.98357675,162.31,162.3,3.082]
[1730808530133,7.98357675,162.31,162.29,3.0822]
[1730808530434,7.98357675,162.3,162.29,3.0822]
[1730808530640,4.13505087,162.3,162.29,3.0822]
[1730808532349,4.13505087,162.3,162.27,10.30768246]
[1730808532539,4.13505087,162.29,162.27,2.73409927]
[1730808532735,4.13505087,162.28,162.27,2.73409927]
[1730808532934,4.13505087,162.28,162.24,7.57358319]
[1730808533141,4.13505087,162.27,162.25,2.78]
[1730808533343,4.13505087,162.26,162.25,5.8629]
[1730808533839,4.13505087,162.26,162.25,2.78]
[1730808535241,8.26559095,162.26,162.25,2.78]
[1730808535435,12.39612588,162.26,162.25,2.78]
[1730808535847,8.26107501,162.26,162.25,2.78]
[1730808538647,4.13054008,162.26,162.25,2.78]
[1730808539245,8.26159704,162.26,162.25,2.78]
[1730808540149,8.26159704,162.26,162.21,8.89848319]
[1730808540447,4.13105696,162.25,162.22,5.8635]
[1730808540847,4.13105696,162.24,162.22,3.0835]
[1730808541047,4.13105696,162.23,162.22,3.0835]
[1730808541444,14.78712327,162.26,162.22,3.0835]
[1730808541648,4.13188681,162.23,162.22,3.0835]
[1730808544451,2.00968681,162.23,162.22,3.0835]
[1730808544752,7.57358319,162.27,162.21,11.67848319]
[1730808545454,7.57358319,162.26,162.21,4.1049]
[1730808545649,1.8558,162.31,162.18,53.07100539]
[1730808545650,7.57358319,162.24,162.18,53.07100539]
[1730808545855,7.57358319,162.24,162.19,2.78]
[1730808546153,7.57358319,162.24,162.2,3.0839]
[1730808546554,10.65708319,162.23,162.19,3.084]
[1730808547258,10.65708319,162.23,162.2,3.0839]
[1730808547454,10.65708319,162.23,162.18,54.52830539]
[1730808547955,7.57358319,162.23,162.17,10.35358319]
[1730808548257,3.0837,162.22,162.17,10.35358319]
[1730808548457,3.0837,162.22,162.18,3.0842]
[1730808549657,3.0837,162.22,162.19,3.0841]
[1730808549855,3.0837,162.22,162.17,2.78]
[1730808550463,3.0837,162.22,162.18,3.0842]
[1730808550758,7.57358319,162.21,162.17,2.78]
[1730808551054,3.084,162.2,162.17,2.78]
[1730808551256,7.57358319,162.19,162.17,2.78]
[1730808552261,7.57358319,162.19,162.16,3.0846]
[1730808553360,3.0838,162.21,162.17,3.0844]
[1730808553562,7.57358319,162.21,162.16,7.57358319]
[1730808553957,10.65748319,162.21,162.17,3.0844]
[1730808554258,7.57358319,162.2,162.17,3.0844]
[1730808558864,10.65758319,162.2,162.17,3.0844]
[1730808560771,7.57358319,162.19,162.16,3.0846]
[1730808561267,7.57358319,162.19,162.17,3.0845]
[1730808561469,7.57358319,162.18,162.06,6.1729]
[1730808561668,7.57358319,162.16,162.11,2.78]
[1730808561858,7.57358319,162.16,162.12,3.0854]
[1730808562169,10.65838319,162.16,162.12,3.0854]
[1730808562370,7.57358319,162.16,162.12,3.0854]
[1730808562867,10.65838319,162.16,162.12,3.0854]
[1730808563756,3.0849,162.15,162.12,3.0854]
[1730808564174,7.57358319,162.18,162.14,3.085]
[1730808564361,10.65798319,162.18,162.11,10.35358319]
[1730808565267,7.57358319,162.16,162.14,3.085]
[1730808567665,3.9551,162.23,162.14,3.085]
[1730808567666,7.57358319,162.19,162.14,7.57358319]
[1730808568464,10.65778319,162.19,162.16,3.0846]
[1730808568968,7.57358319,162.18,162.16,3.0846]
[1730808570270,10.65778319,162.19,162.14,3.085]
[1730808570475,7.57358319,162.19,162.14,7.57358319]
[1730808571274,7.57358319,162.19,162.16,3.0846]
[1730808572769,6.7351,162.23,162.15,2.78]
[1730808572973,72.89631049,162.33,162.15,2.78]
[1730808572974,7.57358319,162.2,162.16,7.57358319]
[1730808573275,7.57358319,162.24,162.18,7.57358319]
[1730808573581,7.57358319,162.24,162.21,3.0836]
[1730808573764,10.65688319,162.24,162.21,3.0836]
[1730808574464,7.57358319,162.25,162.23,3.0833]
[1730808575277,10.65658319,162.25,162.23,3.0833]
[1730808576368,7.57358319,162.24,162.23,3.0833]
[1730808576568,3.0835,162.23,162.2,3.0839]
[1730808576774,7.57358319,162.21,162.2,3.0839]
[1730808577166,7.57358319,162.21,162.19,2.78]
[1730808578072,7.57358319,162.21,162.2,3.084]
[1730808582277,7.57358319,162.21,162.19,2.78]
[1730808582682,7.57358319,162.21,162.16,6.7017]
[1730808583277,10.65738319,162.21,162.18,3.0842]
[1730808583580,10.65738319,162.21,162.16,6.7017]
[1730808583877,7.57358319,162.18,162.16,3.0847]
[1730808584476,10.65798319,162.18,162.15,5.8648]
[1730808584678,7.57358319,162.18,162.15,5.8648]
[1730808584878,7.57358319,162.18,162.15,2.78]
[1730808586384,7.57358319,162.18,162.16,3.0847]
[1730808587885,7.57358319,162.18,162.15,2.78]
[1730808588087,3.0845,162.17,162.15,2.78]
[1730808588782,10.65808319,162.17,162.15,2.78]
[1730808588983,10.65808319,162.17,162.14,3.085]
[1730808592385,10.65808319,162.17,162.12,2.78]